[Event "Live Chess"]
[Site "Chess.com"]
[Date "2023.05.21"]
[Round "-"]
[White "Nakula1000"]
[Black "hturner40"]
[Result "1-0"]
[WhiteElo "461"]
[BlackElo "1784"]
[TimeControl "300"]
[EndTime "4:03:36 PDT"]
[Termination "Nakula1000 won by checkmate"]

1. d4 {[%clk 0:04:45.7]} 1... Nf6 {[%clk 0:04:57.5]} 2. Nf3 {[%clk 0:04:42.4]}
2... g6 {[%clk 0:04:54.7]} 3. c4 {[%clk 0:04:38.8]} 3... Bg7 {[%clk 0:04:52.9]}
4. Nc3 {[%clk 0:04:35.3]} 4... d5 {[%clk 0:04:51.4]} 5. Bg5 {[%clk 0:04:32.2]}
5... Ne4 {[%clk 0:04:50]} 6. h4 {[%clk 0:04:29.6]} 6... h6 {[%clk 0:04:28.1]} 7.
Bf4 {[%clk 0:04:27.6]} 7... Nxc3 {[%clk 0:04:25.8]} 8. bxc3 {[%clk 0:04:23.7]}
8... dxc4 {[%clk 0:04:24.6]} 9. e3 {[%clk 0:04:21.1]} 9... c5 {[%clk 0:04:23.6]}
10. Bxc4 {[%clk 0:04:16.5]} 10... cxd4 {[%clk 0:04:20.6]} 11. exd4 {[%clk
0:04:11]} 11... O-O {[%clk 0:04:16.6]} 12. Ne5 {[%clk 0:04:07.9]} 12... Nc6
{[%clk 0:04:11.3]} 13. Nxc6 {[%clk 0:04:05.6]} 13... bxc6 {[%clk 0:04:09.6]} 14.
Qf3 {[%clk 0:03:58.7]} 14... Qa5 {[%clk 0:03:49.2]} 15. O-O {[%clk 0:03:55.4]}
15... Ba6 {[%clk 0:03:36.2]} 16. Bxa6 {[%clk 0:03:51.2]} 16... Qxa6 {[%clk
0:03:34.4]} 17. Qe3 {[%clk 0:03:48.8]} 17... Qc4 {[%clk 0:03:00.1]} 18. Bxh6
{[%clk 0:03:45.6]} 18... Bxh6 {[%clk 0:02:55.4]} 19. Qxh6 {[%clk 0:03:43.2]}
19... Qxc3 {[%clk 0:02:54.3]} 20. h5 {[%clk 0:03:40.8]} 20... Qxd4 {[%clk
0:02:45.8]} 21. hxg6 {[%clk 0:03:38.6]} 21... Qg7 {[%clk 0:02:39.2]} 22. gxf7+
{[%clk 0:03:35.4]} 22... Rxf7 {[%clk 0:02:36.6]} 23. Qxc6 {[%clk 0:03:32.7]}
23... Raf8 {[%clk 0:02:32.1]} 24. Qc4 {[%clk 0:03:30.2]} 24... Qf6 {[%clk
0:01:50.5]} 25. Rae1 {[%clk 0:03:27.1]} 25... Kh8 {[%clk 0:01:23.4]} 26. Re3
{[%clk 0:03:25.1]} 26... Rh7 {[%clk 0:01:10.5]} 27. Qd5 {[%clk 0:03:22.8]} 27...
Rg8 {[%clk 0:00:56.9]} 28. Rd1 {[%clk 0:03:19.9]} 28... Qh4 {[%clk 0:00:41.7]}
29. Qe5+ {[%clk 0:03:16.9]} 29... Rgg7 {[%clk 0:00:31.5]} 30. Rd8# {[%clk
0:03:13.4]} 1-0

[Event "Live Chess"]
[Site "Chess.com"]
[Date "2023.05.21"]
[Round "-"]
[White "CheckThis4"]
[Black "apl_trainer"]
[Result "1-0"]
[WhiteElo "2502"]
[BlackElo "1790"]
[TimeControl "300"]
[EndTime "4:04:15 PDT"]
[Termination "CheckThis4 won by resignation"]

1. d4 {[%clk 0:04:58.6]} 1... Nf6 {[%clk 0:04:54.3]} 2. Nc3 {[%clk 0:04:58.1]}
2... d5 {[%clk 0:04:52.7]} 3. e4 {[%clk 0:04:56.7]} 3... dxe4 {[%clk 0:04:50.8]}
4. f3 {[%clk 0:04:55.6]} 4... exf3 {[%clk 0:04:47.1]} 5. Nxf3 {[%clk 0:04:54.5]}
5... Bf5 {[%clk 0:04:44.9]} 6. Ne5 {[%clk 0:04:51.9]} 6... c6 {[%clk 0:04:42]}
7. g4 {[%clk 0:04:48.5]} 7... Bg6 {[%clk 0:04:40.7]} 8. h4 {[%clk 0:04:46.8]}
8... Be4 {[%clk 0:04:35]} 9. Nxe4 {[%clk 0:04:44.3]} 9... Nxe4 {[%clk
0:04:33.9]} 10. Qf3 {[%clk 0:04:43.8]} 10... Nd6 {[%clk 0:04:26.5]} 11. Be3
{[%clk 0:04:31.3]} 11... e6 {[%clk 0:04:24.3]} 12. O-O-O {[%clk 0:04:29.8]}
12... Nd7 {[%clk 0:04:22.9]} 13. h5 {[%clk 0:04:26.8]} 13... Be7 {[%clk
0:04:19.8]} 14. Kb1 {[%clk 0:04:18.5]} 14... Nf6 {[%clk 0:04:14.1]} 15. g5
{[%clk 0:04:14.7]} 15... Nd5 {[%clk 0:04:12.9]} 16. g6 {[%clk 0:03:45.9]} 16...
hxg6 {[%clk 0:04:10.4]} 17. hxg6 {[%clk 0:03:44.5]} 1-0

[Event "Live Chess"]
[Site "Chess.com"]
[Date "2023.05.21"]
[Round "-"]
[White "chessfiction"]
[Black "SmoothBaron"]
[Result "0-1"]
[WhiteElo "2317"]
[BlackElo "2390"]
[TimeControl "300"]
[EndTime "4:04:34 PDT"]
[Termination "SmoothBaron won by resignation"]

1. d4 {[%clk 0:04:56.6]} 1... f5 {[%clk 0:04:53]} 2. g4 {[%clk 0:04:53.2]} 2...
fxg4 {[%clk 0:04:48.1]} 3. e4 {[%clk 0:04:52]} 3... d5 {[%clk 0:04:44.2]} 4. Nc3
{[%clk 0:04:47.2]} 4... Nf6 {[%clk 0:04:32]} 5. e5 {[%clk 0:04:43.6]} 5... Ne4
{[%clk 0:04:29.6]} 6. Bg2 {[%clk 0:04:41.5]} 6... Nxc3 {[%clk 0:04:24.9]} 7.
bxc3 {[%clk 0:04:41.4]} 7... Bf5 {[%clk 0:04:19.5]} 8. Rb1 {[%clk 0:04:39.5]}
8... b6 {[%clk 0:04:15.6]} 9. Ne2 {[%clk 0:04:33]} 9... c6 {[%clk 0:04:07.1]}
10. Ng3 {[%clk 0:04:30.3]} 10... Be6 {[%clk 0:04:03.4]} 11. c4 {[%clk
0:04:28.7]} 11... dxc4 {[%clk 0:03:59.3]} 12. O-O {[%clk 0:04:26.7]} 12... h5
{[%clk 0:03:46.5]} 13. f4 {[%clk 0:04:23.3]} 13... Bd5 {[%clk 0:03:42.6]} 14. f5
{[%clk 0:04:16.9]} 14... Na6 {[%clk 0:03:10.3]} 15. Bg5 {[%clk 0:04:08.5]} 15...
Bxg2 {[%clk 0:02:53.7]} 16. Kxg2 {[%clk 0:04:07.6]} 16... Qd5+ {[%clk
0:02:52.3]} 17. Kg1 {[%clk 0:04:06.1]} 17... O-O-O {[%clk 0:02:48.7]} 18. Qe2
{[%clk 0:03:56.1]} 18... h4 {[%clk 0:02:18.9]} 19. Ne4 {[%clk 0:03:49.7]} 19...
Qxd4+ {[%clk 0:02:17.4]} 20. Kh1 {[%clk 0:03:46.1]} 20... Nc5 {[%clk 0:02:13.2]}
21. Nxc5 {[%clk 0:03:42]} 21... Qxc5 {[%clk 0:02:11.8]} 22. Qxg4 {[%clk
0:03:40.6]} 22... h3 {[%clk 0:02:01.5]} 23. f6+ {[%clk 0:03:37.7]} 23... Kb7
{[%clk 0:01:56.3]} 24. fxe7 {[%clk 0:03:36.3]} 24... Bxe7 {[%clk 0:01:55.4]} 25.
Rf7 {[%clk 0:03:33.5]} 25... Qd5+ {[%clk 0:01:54.4]} 26. Qf3 {[%clk 0:03:26.7]}
26... Qxf3+ {[%clk 0:01:52.9]} 27. Rxf3 {[%clk 0:03:23.9]} 27... Bxg5 {[%clk
0:01:51.9]} 0-1

[Event "Live Chess"]
[Site "Chess.com"]
[Date "2023.05.21"]
[Round "-"]
[White "Sweet-O"]
[Black "GMMickeyAdams"]
[Result "0-1"]
[WhiteElo "1428"]
[BlackElo "2794"]
[TimeControl "300"]
[EndTime "4:04:40 PDT"]
[Termination "GMMickeyAdams won by resignation"]

1. d4 {[%clk 0:04:59.1]} 1... Nf6 {[%clk 0:04:58.2]} 2. Nc3 {[%clk 0:04:59]}
2... d5 {[%clk 0:04:56.3]} 3. Bf4 {[%clk 0:04:58]} 3... a6 {[%clk 0:04:52]} 4.
e3 {[%clk 0:04:57.1]} 4... c5 {[%clk 0:04:49.8]} 5. Nf3 {[%clk 0:04:55.6]} 5...
Bg4 {[%clk 0:04:47.3]} 6. h3 {[%clk 0:04:53.8]} 6... Bxf3 {[%clk 0:04:45.6]} 7.
gxf3 {[%clk 0:04:53.7]} 7... e6 {[%clk 0:04:43.2]} 8. Qd3 {[%clk 0:04:51.4]}
8... Nc6 {[%clk 0:04:41.6]} 9. O-O-O {[%clk 0:04:49.6]} 9... cxd4 {[%clk
0:04:39.9]} 10. exd4 {[%clk 0:04:48.3]} 10... Bd6 {[%clk 0:04:38.9]} 11. Bxd6
{[%clk 0:04:46.4]} 11... Qxd6 {[%clk 0:04:37.1]} 12. Qe3 {[%clk 0:04:40.6]}
12... O-O-O {[%clk 0:04:30.8]} 13. Rg1 {[%clk 0:04:38.8]} 13... g6 {[%clk
0:04:29.1]} 14. Qg5 {[%clk 0:04:34.2]} 14... Nh5 {[%clk 0:04:26.5]} 15. Kb1
{[%clk 0:04:22.1]} 15... Kb8 {[%clk 0:04:24.8]} 16. Bd3 {[%clk 0:04:14.3]} 16...
Nxd4 {[%clk 0:04:15]} 17. Qe3 {[%clk 0:04:10.8]} 17... Nc6 {[%clk 0:04:12.7]}
18. Bxa6 {[%clk 0:04:01.3]} 18... d4 {[%clk 0:04:11.2]} 19. Qe2 {[%clk
0:03:51.7]} 19... Nf4 {[%clk 0:04:08.4]} 20. Qb5 {[%clk 0:03:48.6]} 20... Qb4
{[%clk 0:03:49.8]} 21. Qxb4 {[%clk 0:03:33.8]} 21... Nxb4 {[%clk 0:03:48]} 22.
Bxb7 {[%clk 0:03:14]} 22... Kxb7 {[%clk 0:03:45]} 23. Nb5 {[%clk 0:03:11.8]}
23... e5 {[%clk 0:03:43.7]} 24. Rg5 {[%clk 0:03:08.2]} 24... f6 {[%clk
0:03:42.3]} 25. Rgg1 {[%clk 0:03:04.5]} 25... Rd5 {[%clk 0:03:40.8]} 26. a3
{[%clk 0:02:59.4]} 26... Rxb5 {[%clk 0:03:36.9]} 27. axb4 {[%clk 0:02:58.1]}
27... Rxb4 {[%clk 0:03:36.2]} 0-1

[Event "Live Chess"]
[Site "Chess.com"]
[Date "2023.05.21"]
[Round "-"]
[White "misha464"]
[Black "Abde2012"]
[Result "1-0"]
[WhiteElo "753"]
[BlackElo "743"]
[TimeControl "300"]
[EndTime "4:04:42 PDT"]
[Termination "misha464 won by checkmate"]

1. e4 {[%clk 0:04:58.1]} 1... c6 {[%clk 0:04:58.8]} 2. Nf3 {[%clk 0:04:57.1]}
2... d5 {[%clk 0:04:58.2]} 3. exd5 {[%clk 0:04:55.9]} 3... cxd5 {[%clk
0:04:57.3]} 4. Nc3 {[%clk 0:04:55.5]} 4... Bg4 {[%clk 0:04:53.6]} 5. h3 {[%clk
0:04:53.6]} 5... Bxf3 {[%clk 0:04:51.3]} 6. Qxf3 {[%clk 0:04:53.5]} 6... Nf6
{[%clk 0:04:47.4]} 7. d3 {[%clk 0:04:52.5]} 7... g6 {[%clk 0:04:46]} 8. Bg5
{[%clk 0:04:51.6]} 8... Bg7 {[%clk 0:04:45.2]} 9. Bxf6 {[%clk 0:04:50.9]} 9...
Bxf6 {[%clk 0:04:43.1]} 10. Nxd5 {[%clk 0:04:50.5]} 10... Bg7 {[%clk 0:04:37.6]}
11. Be2 {[%clk 0:04:47.6]} 11... Nc6 {[%clk 0:04:35.2]} 12. O-O {[%clk
0:04:45.4]} 12... Nd4 {[%clk 0:04:34]} 13. Qe4 {[%clk 0:04:32.7]} 13... O-O
{[%clk 0:04:28.7]} 14. Nc3 {[%clk 0:04:31.2]} 14... Nxc2 {[%clk 0:04:23.9]} 15.
Rac1 {[%clk 0:04:28.4]} 15... Nd4 {[%clk 0:04:20]} 16. Bf3 {[%clk 0:04:16.9]}
16... Nxf3+ {[%clk 0:04:18.3]} 17. Qxf3 {[%clk 0:04:15.9]} 17... Rc8 {[%clk
0:04:15.2]} 18. Qxb7 {[%clk 0:04:13.4]} 18... Bxc3 {[%clk 0:04:11.3]} 19. Rxc3
{[%clk 0:04:10]} 19... Rxc3 {[%clk 0:04:09.7]} 20. bxc3 {[%clk 0:04:09]} 20...
Qa8 {[%clk 0:04:06.8]} 21. Qxe7 {[%clk 0:04:06.1]} 21... a5 {[%clk 0:04:03.9]}
22. a4 {[%clk 0:04:02.6]} 22... Re8 {[%clk 0:04:03]} 23. Qf6 {[%clk 0:03:52.7]}
23... Re6 {[%clk 0:03:55.8]} 24. Qf3 {[%clk 0:03:49.1]} 24... Qxf3 {[%clk
0:03:52.2]} 25. gxf3 {[%clk 0:03:48.3]} 25... Rc6 {[%clk 0:03:48.8]} 26. c4
{[%clk 0:03:47.6]} 26... Rc5 {[%clk 0:03:46.5]} 27. Re1 {[%clk 0:03:45.5]} 27...
f5 {[%clk 0:03:43.5]} 28. Re7 {[%clk 0:03:38.6]} 28... Kf8 {[%clk 0:03:41.8]}
29. Rxh7 {[%clk 0:03:36.3]} 29... Kg8 {[%clk 0:03:39.4]} 30. Ra7 {[%clk
0:03:34.8]} 30... Kf8 {[%clk 0:03:35.9]} 31. Kf1 {[%clk 0:03:34.1]} 31... Ke8
{[%clk 0:03:34.8]} 32. Ke2 {[%clk 0:03:33.6]} 32... Kd8 {[%clk 0:03:34]} 33. Ke3
{[%clk 0:03:30.4]} 33... Kc8 {[%clk 0:03:33.5]} 34. Kf4 {[%clk 0:03:29.3]} 34...
Kb8 {[%clk 0:03:32.4]} 35. Rg7 {[%clk 0:03:28.7]} 35... Kc8 {[%clk 0:03:29.1]}
36. Kg5 {[%clk 0:03:26.5]} 36... Kd8 {[%clk 0:03:27.8]} 37. f4 {[%clk
0:03:25.7]} 37... Ke8 {[%clk 0:03:27.3]} 38. Kxg6 {[%clk 0:03:25.2]} 38... Kf8
{[%clk 0:03:26.5]} 39. Kf6 {[%clk 0:03:21.4]} 39... Ke8 {[%clk 0:03:20.7]} 40.
Ra7 {[%clk 0:03:15.8]} 40... Kd8 {[%clk 0:03:19.4]} 41. Ke6 {[%clk 0:03:13.5]}
41... Rc8 {[%clk 0:03:14.4]} 42. Kd6 {[%clk 0:03:07]} 42... Ke8 {[%clk
0:03:08.6]} 43. Ke6 {[%clk 0:03:05.3]} 43... Rc6+ {[%clk 0:03:06.6]} 44. Kxf5
{[%clk 0:03:03.6]} 44... Rc5+ {[%clk 0:03:05.8]} 45. Ke4 {[%clk 0:03:02]} 45...
Kf8 {[%clk 0:03:01.1]} 46. f5 {[%clk 0:03:00.8]} 46... Ke8 {[%clk 0:02:59.7]}
47. f6 {[%clk 0:03:00.4]} 47... Kf8 {[%clk 0:02:58.6]} 48. h4 {[%clk 0:02:58.8]}
48... Ke8 {[%clk 0:02:57.1]} 49. f4 {[%clk 0:02:58.4]} 49... Kf8 {[%clk
0:02:55.9]} 50. d4 {[%clk 0:02:56.9]} 50... Rxc4 {[%clk 0:02:53.9]} 51. Ke5
{[%clk 0:02:55.7]} 51... Rxa4 {[%clk 0:02:52.7]} 52. d5 {[%clk 0:02:53.2]} 52...
Ra1 {[%clk 0:02:47.5]} 53. d6 {[%clk 0:02:50.9]} 53... a4 {[%clk 0:02:47]} 54.
Ke6 {[%clk 0:02:46.7]} 54... a3 {[%clk 0:02:45]} 55. f7 {[%clk 0:02:44.3]} 55...
a2 {[%clk 0:02:40.9]} 56. Ra8+ {[%clk 0:02:43.2]} 56... Kg7 {[%clk 0:02:38.6]}
57. f8=Q+ {[%clk 0:02:41.4]} 57... Kg6 {[%clk 0:02:36.6]} 58. Qf5+ {[%clk
0:02:38.8]} 58... Kh6 {[%clk 0:02:35]} 59. Rh8+ {[%clk 0:02:37.7]} 59... Kg7
{[%clk 0:02:32.8]} 60. Qf6# {[%clk 0:02:33.2]} 1-0

[Event "Live Chess"]
[Site "Chess.com"]
[Date "2023.05.21"]
[Round "-"]
[White "MarkLim1"]
[Black "WelshTiger"]
[Result "0-1"]
[WhiteElo "1684"]
[BlackElo "2326"]
[TimeControl "300"]
[EndTime "4:04:52 PDT"]
[Termination "WelshTiger won by resignation"]

1. d4 {[%clk 0:04:59.3]} 1... d5 {[%clk 0:04:58.4]} 2. Nf3 {[%clk 0:04:58.6]}
2... e6 {[%clk 0:04:57.5]} 3. e3 {[%clk 0:04:57.5]} 3... Nf6 {[%clk 0:04:56.3]}
4. Bd3 {[%clk 0:04:56.8]} 4... c5 {[%clk 0:04:55.8]} 5. b3 {[%clk 0:04:55.7]}
5... Nc6 {[%clk 0:04:55.2]} 6. Bb2 {[%clk 0:04:54.6]} 6... Ne4 {[%clk
0:04:51.9]} 7. O-O {[%clk 0:04:50.7]} 7... f5 {[%clk 0:04:51]} 8. c4 {[%clk
0:04:49.4]} 8... cxd4 {[%clk 0:04:46.6]} 9. exd4 {[%clk 0:04:48.3]} 9... Be7
{[%clk 0:04:44.6]} 10. Bc3 {[%clk 0:04:46.9]} 10... O-O {[%clk 0:04:42.2]} 11.
Bb2 {[%clk 0:04:45.6]} 11... Bf6 {[%clk 0:04:41.6]} 12. Nbd2 {[%clk 0:04:44.4]}
12... Qd6 {[%clk 0:04:20.4]} 13. Qe2 {[%clk 0:04:41.1]} 13... Bd7 {[%clk
0:04:15.9]} 14. a4 {[%clk 0:04:36.9]} 14... Nb4 {[%clk 0:04:13.2]} 15. Ba3
{[%clk 0:04:34.3]} 15... a5 {[%clk 0:04:12.5]} 16. c5 {[%clk 0:04:21.9]} 16...
Qc7 {[%clk 0:04:07.1]} 17. Rfc1 {[%clk 0:04:12.6]} 17... Nc6 {[%clk 0:04:05.9]}
18. Ne1 {[%clk 0:04:00.7]} 18... Nxd4 {[%clk 0:04:00.5]} 0-1

[Event "Live Chess"]
[Site "Chess.com"]
[Date "2023.05.21"]
[Round "-"]
[White "YrrriKharkiv"]
[Black "LiamClery2020"]
[Result "1/2-1/2"]
[WhiteElo "2061"]
[BlackElo "2003"]
[TimeControl "300"]
[EndTime "4:05:04 PDT"]
[Termination "Game drawn by agreement"]

1. d4 {[%clk 0:04:55.2]} 1... Nf6 {[%clk 0:04:59.9]} 2. c4 {[%clk 0:04:50.6]}
2... g6 {[%clk 0:04:58.5]} 3. Nc3 {[%clk 0:04:49.2]} 3... d5 {[%clk 0:04:57.4]}
4. Qb3 {[%clk 0:04:45.8]} 4... c6 {[%clk 0:04:49]} 5. Nf3 {[%clk 0:04:42.5]}
5... Bg7 {[%clk 0:04:46.4]} 6. Bg5 {[%clk 0:04:38.1]} 6... e6 {[%clk 0:04:44]}
7. cxd5 {[%clk 0:04:35.9]} 7... exd5 {[%clk 0:04:43]} 8. e3 {[%clk 0:04:32.2]}
8... O-O {[%clk 0:04:42.2]} 9. Bd3 {[%clk 0:04:30]} 9... Nbd7 {[%clk 0:04:41.3]}
10. O-O {[%clk 0:04:28.5]} 10... Qb6 {[%clk 0:04:40.5]} 11. Qxb6 {[%clk
0:04:25]} 11... Nxb6 {[%clk 0:04:39.3]} 12. Bxf6 {[%clk 0:04:24.8]} 12... Bxf6
{[%clk 0:04:38.5]} 13. b3 {[%clk 0:04:23.3]} 13... Bg4 {[%clk 0:04:37.3]} 14.
Nd2 {[%clk 0:04:21.5]} 14... Rfe8 {[%clk 0:04:35]} 15. h3 {[%clk 0:04:19.2]}
15... Bd7 {[%clk 0:04:34]} 16. a4 {[%clk 0:04:15.8]} 16... a5 {[%clk 0:04:32.7]}
17. Rac1 {[%clk 0:04:10.1]} 17... Be7 {[%clk 0:04:29.7]} 18. Ne2 {[%clk
0:04:07.6]} 18... Bb4 {[%clk 0:04:28.3]} 19. Nf3 {[%clk 0:04:06.1]} 19... f6
{[%clk 0:04:26.3]} 20. Rfd1 {[%clk 0:04:01.1]} 20... Kf7 {[%clk 0:04:24.9]} 21.
Ng3 {[%clk 0:04:00]} 21... Re7 {[%clk 0:04:18.5]} 22. e4 {[%clk 0:03:52.6]}
22... dxe4 {[%clk 0:04:13]} 23. Nxe4 {[%clk 0:03:50.1]} 23... Rae8 {[%clk
0:04:11.1]} 24. Ng3 {[%clk 0:03:44.3]} 24... Nd5 {[%clk 0:04:07.1]} 1/2-1/2

[Event "Live Chess"]
[Site "Chess.com"]
[Date "2023.05.21"]
[Round "-"]
[White "Greenbecker"]
[Black "TheSmoulderingMaster"]
[Result "1-0"]
[WhiteElo "1653"]
[BlackElo "1645"]
[TimeControl "300"]
[EndTime "4:05:10 PDT"]
[Termination "Greenbecker won by resignation"]

1. e4 {[%clk 0:04:57.7]} 1... c5 {[%clk 0:04:58.9]} 2. Nf3 {[%clk 0:04:56.3]}
2... d6 {[%clk 0:04:58.3]} 3. d4 {[%clk 0:04:55.3]} 3... cxd4 {[%clk 0:04:57.7]}
4. Nxd4 {[%clk 0:04:54.4]} 4... Nf6 {[%clk 0:04:57.2]} 5. Nc3 {[%clk 0:04:52.9]}
5... g6 {[%clk 0:04:56.4]} 6. Bc4 {[%clk 0:04:51.7]} 6... Bg7 {[%clk 0:04:55.7]}
7. O-O {[%clk 0:04:50.6]} 7... O-O {[%clk 0:04:55]} 8. Re1 {[%clk 0:04:49.9]}
8... Nc6 {[%clk 0:04:54.3]} 9. Nxc6 {[%clk 0:04:48]} 9... bxc6 {[%clk
0:04:53.4]} 10. Bg5 {[%clk 0:04:46.7]} 10... Qa5 {[%clk 0:04:51.5]} 11. Bd2
{[%clk 0:04:44.1]} 11... Qb6 {[%clk 0:04:49]} 12. Na4 {[%clk 0:04:33.2]} 12...
Qd4 {[%clk 0:04:45.6]} 13. b3 {[%clk 0:04:25.1]} 13... Nxe4 {[%clk 0:04:40.6]}
14. Be3 {[%clk 0:03:56.6]} 14... Qxa1 {[%clk 0:04:30.4]} 15. Qxa1 {[%clk
0:03:49.8]} 15... Bxa1 {[%clk 0:04:30.3]} 16. Rxa1 {[%clk 0:03:48.9]} 16... Be6
{[%clk 0:04:13.3]} 17. Bd3 {[%clk 0:03:43.6]} 17... d5 {[%clk 0:04:02.6]} 18.
Nb2 {[%clk 0:03:41.6]} 18... Rfc8 {[%clk 0:03:52.8]} 19. a4 {[%clk 0:03:32.3]}
19... c5 {[%clk 0:03:48.3]} 20. f3 {[%clk 0:03:26.3]} 20... Nf6 {[%clk
0:03:44.8]} 21. Be2 {[%clk 0:03:12.7]} 21... c4 {[%clk 0:03:42.3]} 22. b4 {[%clk
0:03:06.8]} 22... Rd8 {[%clk 0:03:37.7]} 23. Bd4 {[%clk 0:03:02.2]} 23... Nd7
{[%clk 0:03:32]} 24. c3 {[%clk 0:02:57.1]} 24... Bf5 {[%clk 0:03:30.6]} 25. Re1
{[%clk 0:02:48.5]} 25... e5 {[%clk 0:03:28.7]} 26. Bf2 {[%clk 0:02:44.1]} 26...
Nb6 {[%clk 0:03:26.6]} 27. a5 {[%clk 0:02:42]} 27... Nc8 {[%clk 0:03:22.1]} 28.
Bd1 {[%clk 0:02:39.9]} 28... f6 {[%clk 0:03:16.8]} 29. Ba4 {[%clk 0:02:34.7]}
29... Ne7 {[%clk 0:03:13.3]} 30. Bc5 {[%clk 0:02:29.4]} 30... Nc8 {[%clk
0:03:05]} 31. Bc6 {[%clk 0:02:20.6]} 31... Rb8 {[%clk 0:03:02.2]} 32. Rd1 {[%clk
0:02:08.1]} 32... Be6 {[%clk 0:02:56.6]} 33. Nxc4 {[%clk 0:01:57.3]} 33... Bd7
{[%clk 0:02:40.1]} 34. Bxd5+ {[%clk 0:01:49.1]} 34... Kg7 {[%clk 0:02:36.5]} 35.
Bc6 {[%clk 0:01:37.1]} 35... Bxc6 {[%clk 0:02:34.6]} 36. Rxd8 {[%clk 0:01:35]}
36... Bb7 {[%clk 0:02:32]} 37. Nd6 {[%clk 0:01:26]} 37... Nxd6 {[%clk
0:02:30.6]} 38. Rxb8 {[%clk 0:01:24.9]} 1-0

[Event "Live Chess"]
[Site "Chess.com"]
[Date "2023.05.21"]
[Round "-"]
[White "mammamiatwo"]
[Black "tpm07"]
[Result "0-1"]
[WhiteElo "1372"]
[BlackElo "1933"]
[TimeControl "300"]
[EndTime "4:05:10 PDT"]
[Termination "tpm07 won by resignation"]

1. e4 {[%clk 0:04:59.2]} 1... e5 {[%clk 0:04:57.8]} 2. Qf3 {[%clk 0:04:57.9]}
2... Nc6 {[%clk 0:04:51.9]} 3. Bc4 {[%clk 0:04:56.9]} 3... Nf6 {[%clk
0:04:51.3]} 4. c3 {[%clk 0:04:55.9]} 4... Bc5 {[%clk 0:04:41.6]} 5. Bb3 {[%clk
0:04:53.5]} 5... O-O {[%clk 0:04:40]} 6. h3 {[%clk 0:04:51.8]} 6... Na5 {[%clk
0:04:29.9]} 7. Bc2 {[%clk 0:04:50.4]} 7... Bb6 {[%clk 0:04:19.1]} 8. d3 {[%clk
0:04:47.2]} 8... d5 {[%clk 0:04:07.1]} 9. Ne2 {[%clk 0:04:45]} 9... Nc6 {[%clk
0:03:58.7]} 10. O-O {[%clk 0:04:41.3]} 10... h6 {[%clk 0:03:57.5]} 11. Qg3
{[%clk 0:04:40]} 11... Kh8 {[%clk 0:03:54.8]} 12. Be3 {[%clk 0:04:32.6]} 12...
dxe4 {[%clk 0:03:46]} 13. dxe4 {[%clk 0:04:26.1]} 13... Qe7 {[%clk 0:03:17.5]}
14. Na3 {[%clk 0:04:19]} 14... Be6 {[%clk 0:03:13.1]} 15. f4 {[%clk 0:04:07.8]}
15... exf4 {[%clk 0:03:00.5]} 16. Nxf4 {[%clk 0:04:04.1]} 16... Bd7 {[%clk
0:02:45.7]} 17. Bxb6 {[%clk 0:03:59.9]} 17... axb6 {[%clk 0:02:44]} 18. Bb3
{[%clk 0:03:55.4]} 18... Nxe4 {[%clk 0:02:38.4]} 19. Qf3 {[%clk 0:03:53.8]}
19... Nd2 {[%clk 0:02:31]} 0-1

[Event "Live Chess"]
[Site "Chess.com"]
[Date "2023.05.21"]
[Round "-"]
[White "Duke_of_Bebington"]
[Black "manthanit"]
[Result "1-0"]
[WhiteElo "1578"]
[BlackElo "1087"]
[TimeControl "300"]
[EndTime "4:05:11 PDT"]
[Termination "Duke_of_Bebington won by resignation"]

1. e4 {[%clk 0:04:58.6]} 1... e6 {[%clk 0:04:59.1]} 2. d4 {[%clk 0:04:57]} 2...
d6 {[%clk 0:04:58.5]} 3. f4 {[%clk 0:04:54.7]} 3... g6 {[%clk 0:04:57.9]} 4. Nf3
{[%clk 0:04:53.7]} 4... Bg7 {[%clk 0:04:57.2]} 5. Nc3 {[%clk 0:04:51.3]} 5...
Ne7 {[%clk 0:04:56.6]} 6. Be3 {[%clk 0:04:49.4]} 6... Nd7 {[%clk 0:04:55]} 7.
Qd2 {[%clk 0:04:48.7]} 7... h6 {[%clk 0:04:51]} 8. h4 {[%clk 0:04:47.6]} 8... b6
{[%clk 0:04:48.8]} 9. h5 {[%clk 0:04:46.6]} 9... Bb7 {[%clk 0:04:46.7]} 10. hxg6
{[%clk 0:04:45.3]} 10... fxg6 {[%clk 0:04:35.2]} 11. O-O-O {[%clk 0:04:38.1]}
11... a6 {[%clk 0:04:28.9]} 12. g3 {[%clk 0:04:26.3]} 12... d5 {[%clk
0:03:59.4]} 13. e5 {[%clk 0:04:18.9]} 13... Nf5 {[%clk 0:03:52.9]} 14. Bf2
{[%clk 0:04:10]} 14... Qe7 {[%clk 0:03:49.3]} 15. g4 {[%clk 0:04:04.7]} 15...
Nxd4 {[%clk 0:03:01.5]} 16. Nxd4 {[%clk 0:03:50.5]} 16... O-O-O {[%clk
0:02:58.1]} 17. Bd3 {[%clk 0:03:37.9]} 17... g5 {[%clk 0:02:56.6]} 18. f5 {[%clk
0:03:32.3]} 18... Bxe5 {[%clk 0:02:45.4]} 19. fxe6 {[%clk 0:03:28.3]} 19... Bxd4
{[%clk 0:02:42.2]} 20. Bxd4 {[%clk 0:03:25.8]} 20... Rhf8 {[%clk 0:02:35.5]} 21.
exd7+ {[%clk 0:03:23.9]} 21... Qxd7 {[%clk 0:02:33.9]} 22. Bf5 {[%clk
0:03:22.5]} 22... Qxf5 {[%clk 0:02:31.8]} 23. gxf5 {[%clk 0:03:21.3]} 23... Rxf5
{[%clk 0:02:31.4]} 24. Rxh6 {[%clk 0:03:13.9]} 24... Rd6 {[%clk 0:02:29.7]} 25.
Rxd6 {[%clk 0:03:10.7]} 25... cxd6 {[%clk 0:02:28.9]} 26. Rg1 {[%clk 0:03:06.4]}
1-0